fUSD/lending_fUSD_20241224
["ID","MTS","AMOUNT","RATE_DAILY","PERIOD"]
[346510466,1735017064878,-500.0,0.00014246,2]
[346510467,1735017064887,-500.0,0.00014246,2]
[346510468,1735017064896,-500.0,0.00014246,2]
[346510469,1735017064905,-500.0,0.00014246,2]
[346510470,1735017064915,-500.0,0.00014246,2]
[346510471,1735017064924,-500.0,0.00014246,2]
[346510472,1735017064934,-584.48,0.00014246,2]
[346510473,1735017064943,-500.0,0.00014246,2]
[346510474,1735017064953,-734.02,0.00014246,2]
[346510475,1735017064962,-1243.83,0.00014246,2]
[346510476,1735017064971,-500.0,0.00014246,2]
[346510477,1735017064981,-607.12,0.00014246,2]
[346510478,1735017064990,-698.02,0.00014246,2]
[346510479,1735017065000,-500.0,0.00014246,2]
[346510480,1735017065010,-500.0,0.00014246,2]
[346510481,1735017065020,-500.0,0.00014246,2]
[346510482,1735017065029,-500.0,0.00014246,2]
[346510483,1735017065039,-500.0,0.00014246,2]
[346510484,1735017065048,-500.0,0.00014246,2]
[346510485,1735017065057,-500.0,0.00014246,2]
[346510486,1735017065066,-1517.51,0.00014246,2]
[346510487,1735017065075,-500.0,0.00014246,2]
[346510488,1735017065085,-2185.96,0.00014246,2]
[346510489,1735017065095,-1895.65,0.00014246,2]
[346510490,1735017065103,-500.0,0.00014246,2]
[346510491,1735017065112,-500.0,0.00014246,2]
[346510492,1735017065122,-500.0,0.00014246,2]
[346510493,1735017065131,-234.00854764,0.00014246,2]
[346510494,1735017065140,-500.0,0.00014246,2]
[346510495,1735017065148,-500.0,0.00014246,2]
[346510496,1735017065157,-524.51,0.00014246,2]
[346510497,1735017065166,-500.0,0.00014246,2]
[346510498,1735017065175,-1146.95,0.00014246,2]
[346510499,1735017065184,-1341.35,0.00014246,2]
[346510500,1735017065193,-500.0,0.00014246,2]
[346510501,1735017065202,-845.49,0.00014246,2]
[346510502,1735017065211,-847.15,0.00014246,2]
[346510503,1735017065221,-804.88,0.00014246,2]
[346510504,1735017065230,-500.0,0.00014246,2]
[346510505,1735017065239,-500.0,0.00014246,2]
[346510506,1735017065248,-500.0,0.00014246,2]
[346510507,1735017065257,-500.0,0.00014246,2]
[346510508,1735017065267,-512.15,0.00014246,2]
[346510509,1735017065276,-728.57,0.00014246,2]
[346510510,1735017065285,-500.0,0.00014246,2]
[346510511,1735017065294,-953.52,0.00014246,2]
[346510512,1735017065303,-500.0,0.00014246,2]
[346510513,1735017065312,-500.0,0.00014246,2]
[346510514,1735017065322,-500.0,0.00014246,2]
[346510515,1735017065331,-1722.6,0.00014246,2]
[346510516,1735017065340,-1169.18,0.00014246,2]
[346510517,1735017065349,-967.22,0.00014246,2]
[346510518,1735017065358,-500.0,0.00014246,2]
[346510519,1735017065367,-500.0,0.00014246,2]
[346510520,1735017065376,-970.63,0.00014246,2]
[346510521,1735017065385,-682.34,0.00014246,2]
[346510522,1735017065393,-500.0,0.00014246,2]
[346510523,1735017065402,-1186.53,0.00014246,2]
[346510524,1735017065412,-2751.61,0.00014246,2]
[346510525,1735017065420,-516.04,0.00014246,2]
[346510526,1735017065429,-500.0,0.00014246,2]
[346510527,1735017065439,-8307.43,0.00014246,2]
[346510528,1735017065448,-951.65,0.00014246,2]
[346510529,1735017065457,-838.55,0.00014246,2]
[346510530,1735017065467,-1312.48,0.00014246,2]
[346510531,1735017065477,-500.0,0.00014246,2]
[346510532,1735017065486,-500.0,0.00014246,2]
[346510533,1735017065496,-693.38,0.00014246,2]
[346510534,1735017065506,-500.0,0.00014246,2]
[346510535,1735017065515,-500.0,0.00014246,2]
[346510536,1735017065526,-895.42,0.00014246,2]
[346510537,1735017065535,-2714.59,0.00014246,2]
[346510538,1735017065546,-500.0,0.00014246,2]
[346510539,1735017065558,-1034.79,0.00014246,2]
[346510540,1735017065568,-1494.15,0.00014246,2]
[346510541,1735017065577,-970.92,0.00014246,2]
[346510542,1735017065587,-530.08,0.00014246,2]
[346510543,1735017065597,-2028.23,0.00014246,2]
[346510544,1735017065606,-14022.51,0.00014246,2]
[346510545,1735017065616,-8065.04,0.00014246,2]
[346510546,1735017065626,-500.0,0.00014246,2]
[346510547,1735017065636,-500.0,0.00014246,2]
[346510548,1735017065645,-500.0,0.00014246,2]
[346510549,1735017065654,-417.753861,0.00014246,2]
[346510550,1735017065663,-1858.88,0.00014246,2]
[346510551,1735017065672,-638.49,0.00014246,2]
[346510552,1735017065681,-1961.86,0.00014246,2]
[346510553,1735017065690,-500.0,0.00014246,2]
[346510554,1735017065699,-617.19,0.00014246,2]
[346510555,1735017065707,-500.0,0.00014246,2]
[346510556,1735017065716,-500.0,0.00014246,2]
[346510557,1735017065726,-470.967598,0.00014246,2]
[346510558,1735017065735,-1516.28,0.00014246,2]
[346510559,1735017065744,-500.0,0.00014246,2]
[346510560,1735017065753,-500.0,0.00014246,2]
[346510561,1735017065762,-500.0,0.00014246,2]
[346510562,1735017065771,-2763.5,0.00014246,2]
[346510563,1735017065780,-500.0,0.00014246,2]
[346510564,1735017065789,-595.96,0.00014246,2]
[346510565,1735017065798,-991.86,0.00014246,2]
[346510566,1735017065807,-1589.93,0.00014246,2]
[346510567,1735017065816,-2026.52,0.00014246,2]
[346510568,1735017065826,-500.0,0.00014246,2]
[346510569,1735017065835,-841.8,0.00014246,2]
[346510570,1735017065844,-500.0,0.00014246,2]
[346510571,1735017065853,-1673.95,0.00014246,2]
[346510572,1735017065862,-704.95,0.00014246,2]
[346510573,1735017065871,-881.88,0.00014246,2]
[346510574,1735017065881,-947.94,0.00014246,2]
[346510575,1735017065890,-500.0,0.00014246,2]
[346510576,1735017065899,-1132.27,0.00014246,2]
[346510577,1735017065908,-1217.14,0.00014246,2]
[346510578,1735017065917,-500.0,0.00014246,2]
[346510579,1735017065927,-527.89,0.00014246,2]
[346510580,1735017065937,-500.0,0.00014246,2]
[346510581,1735017065946,-500.0,0.00014246,2]
[346510582,1735017065955,-1554.58,0.00014246,2]
[346510583,1735017065964,-1554.93,0.00014246,2]
[346510584,1735017065974,-783.81,0.00014246,2]
[346510585,1735017065983,-405.6,0.00014246,2]
[346510586,1735017065993,-8937.01,0.00014246,2]
[346510587,1735017066004,-1043.93,0.00014246,2]
[346510588,1735017066013,-1595.12,0.00014246,2]
[346510589,1735017066023,-820.47,0.00014246,2]
[346510590,1735017066033,-570.88,0.00014246,2]
[346510591,1735017066043,-500.0,0.00014246,2]
[346510592,1735017066052,-3160.1,0.00014246,2]
[346510593,1735017066062,-2812.48,0.00014246,2]
[346510594,1735017066071,-500.0,0.00014246,2]
[346510595,1735017066081,-1278.73,0.00014246,2]
[346510596,1735017066090,-500.0,0.00014246,2]
[346510597,1735017066099,-2713.57,0.00014246,2]
[346510598,1735017066108,-500.0,0.00014246,2]
[346510599,1735017066117,-708.16,0.00014246,2]
[346510600,1735017066127,-2055.84,0.00014246,2]
[346510601,1735017066136,-500.0,0.00014246,2]
[346510602,1735017066145,-500.0,0.00014246,2]
[346510603,1735017066154,-1461.32,0.00014246,2]
[346510604,1735017066164,-1831.86,0.00014246,2]
[346510605,1735017066173,-500.0,0.00014246,2]
[346510606,1735017066182,-5286.14,0.00014246,2]
[346510607,1735017066192,-2687.24,0.00014246,2]
[346510608,1735017066201,-929.6,0.00014246,2]
[346510609,1735017066211,-1334.92,0.00014246,2]
[346510610,1735017066220,-599.85,0.00014246,2]
[346510611,1735017066229,-6644.58,0.00014246,2]
[346510612,1735017066239,-500.0,0.00014246,2]
[346510613,1735017066248,-2084.05,0.00014246,2]
[346510614,1735017066257,-1574.04,0.00014246,2]
[346510615,1735017066266,-500.0,0.00014246,2]
[346510616,1735017066276,-521.4,0.00014246,2]
[346510617,1735017066285,-500.0,0.00014246,2]
[346510618,1735017066295,-500.0,0.00014246,2]
[346510619,1735017066304,-5396.91,0.00014246,2]
[346510620,1735017066314,-1759.16,0.00014246,2]
[346510621,1735017066323,-500.0,0.00014246,2]
[346510622,1735017066332,-517.8510182,0.00014246,2]
[346510623,1735017066342,-500.0,0.00014246,2]
[346510624,1735017066351,-5068.92,0.00014246,2]
[346510625,1735017066361,-2140.51,0.00014246,2]
[346510626,1735017066370,-500.0,0.00014246,2]
[346510627,1735017066379,-1094.07,0.00014246,2]
[346510628,1735017066389,-1218.27,0.00014246,2]
[346510629,1735017066398,-345.803207,0.00014246,2]
[346510630,1735017066407,-10243.1,0.00014246,2]
[346510631,1735017066416,-721.28,0.00014246,2]
[346510632,1735017066425,-500.0,0.00014246,2]
[346510633,1735017066434,-5625.96,0.00014246,2]
[346510634,1735017066443,-1216.52,0.00014246,2]
[346510635,1735017066452,-790.49,0.00014246,2]
[346510636,1735017066462,-500.0,0.00014246,2]
[346510637,1735017066472,-2281.06,0.00014246,2]
[346510638,1735017066482,-500.0,0.00014246,2]
[346510639,1735017066493,-506.69,0.00014246,2]
[346510640,1735017066503,-653.69,0.00014246,2]
[346510641,1735017066512,-500.0,0.00014246,2]
[346510642,1735017066522,-500.0,0.00014246,2]
[346510643,1735017066533,-500.0,0.00014246,2]
[346510644,1735017066542,-1025.3,0.00014246,2]
[346510645,1735017066556,-500.0,0.00014246,2]
[346510646,1735017066565,-3534.91,0.00014246,2]
[346510647,1735017066574,-500.0,0.00014246,2]
[346510648,1735017066584,-1884.7,0.00014246,2]
[346510649,1735017066594,-1009.93,0.00014246,2]
[346510650,1735017066603,-747.18,0.00014246,2]
[346510651,1735017066613,-542.07925963,0.00014246,2]
[346510652,1735017066622,-1148.68,0.00014246,2]
[346510653,1735017066631,-500.0,0.00014246,2]
[346510654,1735017066642,-1487.41,0.00014246,2]
[346510655,1735017066651,-1157.43,0.00014246,2]
[346510656,1735017066660,-500.0,0.00014246,2]
[346510657,1735017066669,-574.67,0.00014246,2]
[346510658,1735017066678,-520.9,0.00014246,2]
[346510659,1735017066687,-500.0,0.00014246,2]
[346510660,1735017066696,-1366.93,0.00014246,2]
[346510661,1735017066816,-1321.6,0.00014246,2]
[346510662,1735017066827,-500.0,0.00014246,2]
[346510663,1735017066836,-3473.97,0.00014246,2]
[346510664,1735017066846,-2009.91,0.00014246,2]
[346510665,1735017066855,-500.0,0.00014246,2]
[346510666,1735017066865,-1834.74,0.00014246,2]
[346510667,1735017066874,-12237.72,0.00014246,2]
[346510668,1735017066884,-1429.03,0.00014246,2]
[346510669,1735017066893,-500.0,0.00014246,2]
[346510670,1735017066903,-926.41,0.00014246,2]
[346510671,1735017066913,-500.0,0.00014246,2]
[346510672,1735017066923,-3213.22,0.00014246,2]
[346510673,1735017066933,-669.32,0.00014246,2]
[346510674,1735017066942,-500.0,0.00014246,2]
[346510675,1735017066951,-1265.202,0.0001447,2]
[346510676,1735017066961,-2011.0,0.0001447,2]
[346510677,1735017066971,-633.0,0.0001447,2]
[346510678,1735017066980,-500.0,0.00014519,2]
[346510679,1735017066990,-500.0,0.00014519,2]
[346510680,1735017066999,-502.26438305,0.00014519,2]
[346510681,1735017067009,-500.90639538,0.00014519,2]
[346510682,1735017067018,-500.0,0.00014519,2]
[346510683,1735017067028,-189.48331165,0.00014519,2]
[346510684,1735017067037,-396.14916212,0.00014519,2]
[346510685,1735017067046,-500.0,0.00014519,2]
[346510686,1735017067056,-500.0,0.00014519,2]
[346510687,1735017067065,-500.0,0.00014519,2]
[346510688,1735017067074,-500.0,0.00014519,2]
[346510689,1735017067084,-500.0,0.00014519,2]
[346510690,1735017067093,-500.0,0.00014519,2]
[346510691,1735017067102,-500.0,0.00014519,2]
[346510692,1735017067112,-500.0,0.00014519,2]
[346510693,1735017067121,-500.0,0.00014519,2]
[346510694,1735017067131,-500.0,0.00014519,2]
[346510695,1735017067140,-500.0,0.0001452,2]
[346510696,1735017067150,-500.0,0.0001452,2]
[346510697,1735017067159,-500.0,0.0001452,2]
[346510698,1735017067169,-176.64248551,0.0001452,2]
[346510699,1735017067178,-500.0,0.0001452,2]
[346510700,1735017067187,-557.785434,0.0001452,2]
[346510701,1735017067196,-500.0,0.0001452,2]
[346510702,1735017067205,-664.615719,0.0001452,2]
[346510703,1735017067215,-500.0,0.0001452,2]
[346510704,1735017067224,-500.0,0.0001452,2]
[346510705,1735017067233,-500.0,0.0001452,2]
[346510706,1735017067242,-500.0,0.0001452,2]
[346510707,1735017067251,-500.0,0.0001452,2]
[346510708,1735017067261,-500.0,0.0001452,2]
[346510709,1735017067270,-500.0,0.0001452,2]
[346510710,1735017067279,-500.0,0.0001452,2]
[346510711,1735017067288,-500.0,0.0001452,2]
[346510712,1735017067297,-500.0,0.0001452,2]
[346510713,1735017067306,-500.0,0.0001452,2]
[346510714,1735017067315,-500.0,0.0001452,2]
[346510715,1735017067325,-500.0,0.0001452,2]
[346510716,1735017067334,-500.0,0.0001452,2]
[346510717,1735017067343,-500.0,0.0001452,2]
[346510718,1735017067353,-500.0,0.0001452,2]
[346510719,1735017067362,-656.66,0.0001452,2]
[346510720,1735017067371,-500.0,0.0001452,2]
[346510721,1735017067380,-500.0,0.0001452,2]
[346510722,1735017067389,-547.42,0.0001452,2]
[346510723,1735017067398,-500.0,0.0001452,2]
[346510724,1735017067407,-500.0,0.0001452,2]
[346510725,1735017067416,-500.0,0.0001452,2]
[346510726,1735017067425,-500.0,0.0001452,2]
[346510727,1735017067435,-500.0,0.0001452,2]
[346510728,1735017067445,-500.0,0.0001452,2]
[346510729,1735017067454,-500.0,0.0001452,2]
[346510730,1735017067463,-500.0,0.0001452,2]
[346510731,1735017067474,-500.0,0.0001452,2]
[346510732,1735017067483,-500.0,0.0001452,2]
[346510733,1735017067493,-728.94,0.0001452,2]
[346510734,1735017067503,-559.81,0.0001452,2]
[346510735,1735017067512,-500.0,0.0001452,2]
[346510736,1735017067521,-500.0,0.0001452,2]
[346510737,1735017067531,-500.0,0.0001452,2]
[346510738,1735017067541,-500.0,0.0001452,2]
[346510739,1735017067553,-500.0,0.0001452,2]
[346510740,1735017067562,-500.0,0.0001452,2]
[346510741,1735017067571,-556.14,0.0001452,2]
[346510742,1735017067581,-503.32595325,0.0001452,2]
[346510743,1735017067591,-500.0,0.0001452,2]
[346510744,1735017067601,-500.0,0.0001452,2]
[346510745,1735017067610,-500.0,0.0001452,2]
[346510746,1735017067619,-922.02,0.0001452,2]
[346510747,1735017067630,-500.0,0.0001452,2]
[346510748,1735017067640,-660.38,0.0001452,2]
[346510749,1735017067649,-500.0,0.0001452,2]
[346510750,1735017067659,-500.0,0.0001452,2]
[346510751,1735017067668,-500.0,0.0001452,2]
[346510752,1735017067677,-500.0,0.0001452,2]
[346510753,1735017067687,-719.55,0.0001452,2]
[346510754,1735017067695,-500.0,0.0001452,2]
[346510755,1735017067704,-500.0,0.0001452,2]
[346510756,1735017067715,-500.0,0.0001452,2]
[346510757,1735017067724,-500.0,0.0001452,2]
[346510758,1735017067734,-847.72,0.0001452,2]
[346510759,1735017067744,-500.0,0.0001452,2]
[346510760,1735017067753,-803.4,0.0001452,2]
[346510761,1735017067763,-500.0,0.0001452,2]
[346510762,1735017067772,-500.0,0.0001452,2]
[346510763,1735017067781,-500.0,0.0001452,2]
[346510764,1735017067790,-504.59325393,0.0001452,2]
[346510765,1735017067799,-500.0,0.0001452,2]
[346510766,1735017067808,-500.0,0.0001452,2]
[346510767,1735017067817,-505.42719979,0.0001452,2]
[346510768,1735017067827,-500.0,0.0001452,2]
[346510769,1735017067836,-500.0,0.0001452,2]
[346510770,1735017067845,-500.0,0.0001452,2]
[346510771,1735017067854,-500.0,0.0001452,2]
[346510772,1735017067864,-500.0,0.0001452,2]
[346510773,1735017067873,-500.0,0.0001452,2]
[346510774,1735017067883,-500.0,0.0001452,2]
[346510775,1735017067892,-500.0,0.0001452,2]
[346510776,1735017067901,-500.0,0.0001452,2]
[346510777,1735017067911,-500.0,0.0001452,2]
[346510778,1735017067920,-500.0,0.0001452,2]
[346510779,1735017067929,-500.0,0.0001452,2]
[346510780,1735017067939,-500.0,0.0001452,2]
[346510781,1735017067948,-500.0,0.0001452,2]
[346510782,1735017067957,-500.0,0.0001452,2]
[346510783,1735017067967,-500.0,0.0001452,2]
[346510784,1735017067977,-500.0,0.0001452,2]
[346510785,1735017067986,-500.0,0.0001452,2]
[346510786,1735017067996,-639.75,0.0001452,2]
[346510787,1735017068005,-500.0,0.0001452,2]
[346510788,1735017068014,-500.0,0.0001452,2]
[346510789,1735017068024,-648.5259201,0.0001452,2]
[346510790,1735017068033,-500.0,0.0001452,2]
[346510791,1735017068043,-500.0,0.0001452,2]
[346510792,1735017068052,-500.0,0.0001452,2]
[346510793,1735017068061,-2089.39,0.0001452,2]
[346510794,1735017068071,-739.91,0.0001452,2]
[346510795,1735017068080,-500.0,0.0001452,2]
[346510796,1735017068089,-647.61085865,0.0001452,2]
[346510797,1735017068098,-500.0,0.0001452,2]
[346510798,1735017068107,-500.0,0.0001452,2]
[346510799,1735017068117,-500.0,0.0001452,2]
[346510800,1735017068126,-500.0,0.0001452,2]
[346510801,1735017068136,-500.0,0.0001452,2]
[346510802,1735017068145,-500.0,0.0001452,2]
[346510803,1735017068154,-500.0,0.0001452,2]
[346510804,1735017068163,-500.0,0.0001452,2]
[346510805,1735017068173,-500.0,0.0001452,2]
[346510806,1735017068182,-500.0,0.0001452,2]
[346510807,1735017068192,-500.0,0.0001452,2]
[346510808,1735017068201,-500.0,0.0001452,2]
[346510809,1735017068211,-605.17,0.0001452,2]
[346510810,1735017068220,-815.06,0.0001452,2]
[346510811,1735017068230,-500.0,0.0001452,2]
[346510812,1735017068239,-500.0,0.0001452,2]
[346510813,1735017068249,-500.0,0.0001452,2]
[346510814,1735017068259,-500.0,0.0001452,2]
[346510815,1735017068267,-500.0,0.0001452,2]
[346510816,1735017068277,-500.0,0.0001452,2]
[346510817,1735017068286,-699.59,0.0001452,2]
[346510818,1735017068295,-500.0,0.0001452,2]
[346510819,1735017068304,-500.0,0.0001452,2]
[346510820,1735017068315,-500.0,0.0001452,2]
[346510821,1735017068324,-500.0,0.0001452,2]
[346510822,1735017068333,-500.0,0.0001452,2]
[346510823,1735017068343,-1038.23,0.0001452,2]
[346510824,1735017068352,-500.0,0.0001452,2]
[346510825,1735017068361,-500.0,0.0001452,2]
[346510826,1735017068370,-500.0,0.0001452,2]
[346510827,1735017068379,-500.0,0.0001452,2]
[346510828,1735017068389,-928.44,0.0001452,2]
[346510829,1735017068398,-500.0,0.0001452,2]
[346510830,1735017068407,-500.0,0.0001452,2]
[346510831,1735017068417,-500.0,0.0001452,2]
[346510832,1735017068426,-1245.64,0.0001452,2]
[346510833,1735017068435,-500.0,0.0001452,2]
[346510834,1735017068445,-500.0,0.0001452,2]
[346510835,1735017068454,-500.0,0.0001452,2]
[346510836,1735017068463,-500.0,0.0001452,2]
[346510837,1735017068472,-628.43,0.0001452,2]
[346510838,1735017068481,-500.0,0.0001452,2]
[346510839,1735017068492,-500.0,0.0001452,2]
[346510840,1735017068501,-500.0,0.0001452,2]
[346510841,1735017068511,-500.0,0.0001452,2]
[346510842,1735017068520,-500.0,0.0001452,2]
[346510843,1735017068530,-516.41,0.0001452,2]
[346510844,1735017068539,-500.0,0.0001452,2]
[346510845,1735017068551,-500.0,0.0001452,2]
[346510846,1735017068561,-523.48998229,0.0001452,2]
[346510847,1735017068570,-500.0,0.0001452,2]
[346510848,1735017068579,-500.0,0.0001452,2]
[346510849,1735017068588,-500.0,0.0001452,2]
[346510850,1735017068598,-500.0,0.0001452,2]
[346510851,1735017068607,-500.0,0.0001452,2]
[346510852,1735017068617,-859.05,0.0001452,2]
[346510853,1735017068626,-500.0,0.0001452,2]
[346510854,1735017068636,-500.0,0.0001452,2]
[346510855,1735017068645,-500.0,0.0001452,2]
[346510856,1735017068655,-500.0,0.0001452,2]
[346510857,1735017068664,-500.0,0.0001452,2]
[346510858,1735017068673,-509.6541578,0.0001452,2]
[346510859,1735017068683,-500.0,0.0001452,2]
[346510860,1735017068692,-500.0,0.0001452,2]
[346510861,1735017068702,-500.0,0.0001452,2]
[346510862,1735017068714,-500.0,0.0001452,2]
[346510863,1735017068725,-500.0,0.0001452,2]
[346510864,1735017068735,-500.0,0.0001452,2]
[346510865,1735017068744,-500.0,0.0001452,2]
[346510866,1735017068753,-500.0,0.0001452,2]
[346510867,1735017068763,-502.55243879,0.0001452,2]
[346510868,1735017068772,-500.0,0.0001452,2]
[346510869,1735017068781,-500.0,0.0001452,2]
[346510870,1735017068792,-500.0,0.0001452,2]
[346510871,1735017068801,-500.0,0.0001452,2]
[346510872,1735017068811,-500.0,0.0001452,2]
[346510873,1735017068821,-503.59310532,0.0001452,2]
[346510874,1735017068830,-500.0,0.0001452,2]
[346510875,1735017068840,-500.0,0.0001452,2]
[346510876,1735017068849,-500.0,0.0001452,2]
[346510877,1735017068859,-500.0,0.0001452,2]
[346510878,1735017068868,-500.0,0.0001452,2]
[346510879,1735017068878,-500.0,0.0001452,2]
[346510880,1735017068887,-500.0,0.0001452,2]
[346510881,1735017068897,-500.0,0.0001452,2]
[346510882,1735017068906,-500.0,0.0001452,2]
[346510883,1735017068915,-589.52,0.0001452,2]
[346510884,1735017068924,-500.0,0.0001452,2]
[346510885,1735017068934,-503.64029364,0.0001452,2]
[346510886,1735017068942,-500.0,0.0001452,2]
[346510887,1735017068952,-500.0,0.0001452,2]
[346510888,1735017068960,-500.0,0.0001452,2]
[346510889,1735017068970,-500.0,0.0001452,2]
[346510890,1735017068980,-503.39681868,0.0001452,2]
[346510891,1735017069260,-500.0,0.0001452,2]
[346510892,1735017069275,-500.0,0.0001452,2]
[346510893,1735017069284,-500.0,0.0001452,2]
[346510894,1735017069293,-524.33,0.0001452,2]
[346510895,1735017069302,-500.0,0.0001452,2]
[346510896,1735017069311,-500.0,0.0001452,2]
[346510897,1735017069321,-500.0,0.0001452,2]
[346510898,1735017069330,-500.0,0.0001452,2]
[346510899,1735017069339,-500.0,0.0001452,2]
[346510900,1735017069348,-500.0,0.0001452,2]
[346510901,1735017069357,-500.0,0.0001452,2]
[346510902,1735017069366,-500.0,0.0001452,2]
[346510903,1735017069375,-500.0,0.0001452,2]
[346510904,1735017069384,-500.0,0.0001452,2]
[346510905,1735017069393,-500.0,0.0001452,2]
[346510906,1735017069402,-500.0,0.0001452,2]
[346510907,1735017069411,-500.0,0.0001452,2]
[346510908,1735017069420,-500.0,0.0001452,2]
[346510909,1735017069429,-500.0,0.0001452,2]
[346510910,1735017069438,-379.35184162,0.0001452,2]
[346510911,1735017069447,-500.0,0.0001452,2]
[346510912,1735017069457,-503.03278075,0.0001452,2]
[346510913,1735017069466,-500.0,0.0001452,2]
[346510914,1735017069476,-500.0,0.0001452,2]
[346510915,1735017069486,-958.18,0.0001452,2]
[346510916,1735017069495,-500.0,0.0001452,2]
[346510917,1735017069504,-500.0,0.0001452,2]
[346510918,1735017069514,-500.0,0.0001452,2]
[346510919,1735017069523,-500.0,0.0001452,2]
[346510920,1735017069532,-500.0,0.0001452,2]
[346510921,1735017069542,-500.0,0.0001452,2]
[346510922,1735017069556,-500.0,0.0001452,2]
[346510923,1735017069565,-500.0,0.0001452,2]
[346510924,1735017069575,-500.0,0.0001452,2]
[346510925,1735017069584,-500.0,0.0001452,2]
[346510926,1735017069594,-500.0,0.0001452,2]
[346510927,1735017069604,-537.25,0.0001452,2]
[346510928,1735017069613,-1121.59,0.0001452,2]
[346510929,1735017069623,-500.0,0.0001452,2]
[346510930,1735017069632,-500.0,0.0001452,2]
[346510931,1735017069641,-500.0,0.0001452,2]
[346510932,1735017069650,-500.0,0.0001452,2]
[346510933,1735017069659,-500.0,0.0001452,2]
[346510934,1735017069669,-500.0,0.0001452,2]
[346510935,1735017069678,-500.0,0.0001452,2]
[346510936,1735017069687,-500.0,0.0001452,2]
[346510937,1735017069696,-556.54,0.0001452,2]
[346510938,1735017069706,-500.0,0.0001452,2]
[346510939,1735017069717,-500.0,0.0001452,2]
[346510940,1735017069726,-500.0,0.0001452,2]
[346510941,1735017069736,-500.0,0.0001452,2]
[346510942,1735017069745,-500.0,0.0001452,2]
[346510943,1735017069755,-500.0,0.0001452,2]
[346510944,1735017069765,-500.0,0.0001452,2]
[346510945,1735017069775,-561.23,0.0001452,2]
[346510946,1735017069784,-500.0,0.0001452,2]
[346510947,1735017069794,-500.0,0.0001452,2]
[346510948,1735017069803,-915.52,0.0001452,2]
[346510949,1735017069813,-500.0,0.0001452,2]
[346510950,1735017069823,-500.0,0.0001452,2]
[346510951,1735017069833,-500.0,0.0001452,2]
[346510952,1735017069843,-876.14,0.0001452,2]
[346510953,1735017069852,-500.0,0.0001452,2]
[346510954,1735017069862,-500.0,0.0001452,2]
[346510955,1735017069872,-500.0,0.0001452,2]
[346510956,1735017069881,-500.0,0.0001452,2]
[346510957,1735017069890,-500.0,0.0001452,2]
[346510958,1735017069900,-519.25781038,0.0001452,2]
[346510959,1735017069909,-500.0,0.0001452,2]
[346510960,1735017069918,-500.0,0.0001452,2]
[346510961,1735017069928,-500.0,0.0001452,2]
[346510962,1735017069937,-500.0,0.0001452,2]
[346510963,1735017069947,-500.0,0.0001452,2]
[346510964,1735017069957,-500.0,0.0001452,2]
[346510965,1735017069966,-500.0,0.0001452,2]